[Event "4NCL 2022-2023"]
[Site "Daventry"]
[Date "2023.02.11"]
[Round "5.25"]
[White "Jones, Gawain C B"]
[Black "Fernandez, Daniel Howard"]
[Result "1-0"]
[ECO "A10"]
[WhiteElo "2617"]
[BlackElo "2481"]
[Annotator "TA"]
[PlyCount "113"]
[EventDate "2022.10.20"]
[EventType "team-tourn"]
[EventCountry "ENG"]
[SourceTitle "playchess.com"]
[Source "ChessBase"]
[SourceQuality "1"]
[TimeControl "40/6000+30:2400+30"]

{[%evp 9,113,17,14,9,15,10,51,44,48,31,50,69,64,66,97,81,88,87,102,83,93,92,106,99,111,93,156,127,122,126,130,109,108,109,162,119,134,138,125,133,112,91,100,88,249,249,531,537,519,522,495,378,379,350,300,346,350,349,346,337,320,338,340,335,320,320,335,333,366,350,421,435,417,406,368,210,593,555,480,360,333,314,856,856,828,776,1048,783,12836,12836,12836,12837,12837,12837,12837,12838,12838,12839,12838,12838,12842,12843,12844,12843,29994,29995]} 1. c4 {[%emt 0:04:23]} b6 {[%emt 0:04:05]} 2. Nc3 {[%emt 0:00:11]} f5 {[%emt 0:03:55]} 3. d4 {[%emt 0:15:55]} e6 {[%emt 0:03:38]} 4. g3 {[%emt 0:17:40]} Bb7 {[%emt 0:00:14]} 5. d5 {[%emt 0:00:23]} Bb4 {[%emt 0:08:30]} 6. Bg2 {[%emt 0:04:47] A10: English Opening: Unusual Replies for Black.} Nf6 {[%emt 0:01:52]} 7. Nh3 {[%emt 0:03:57] [#]} h6 $146 {[%emt 0:12:45]} ({Predecessor:} 7... O-O 8. O-O Qe7 9. d6 {1-0 Menezes,C (2398)-Danner,L (2086) Niederoesterreich Landesliga 1617 2016 (10.1)}) 8. Qb3 {[%emt 0:03:54] White is slightly better.} a5 {[%emt 0:05:01]} 9. O-O {[%emt 0:10:17]} e5 {[%emt 0:05:24]} 10. e4 {[%emt 0:11:44]} fxe4 {[%emt 0:05:49]} 11. Nxe4 {[%emt 0:00:12]} Na6 {[%emt 0:04:57]} 12. a3 {[%emt 0:08:39]} Bc5 {[%emt 0:00:50]} 13. Nxc5 {[%emt 0:01:17]} Nxc5 {[%emt 0:02:01]} 14. Qc3 {[%emt 0:00:07]} d6 {[%emt 0:04:50]} 15. f4 {[%emt 0:00:49]} e4 {[%emt 0:08:59][%cal Ob6b5]} 16. Be3 {[%emt 0:05:54]} O-O {[%emt 0:00:44]} 17. Nf2 {[%emt 0:01:01] White is more active.} Re8 {[%emt 0:01:53]} (17... a4 $142) 18. Rae1 {[%emt 0:03:13]} c6 {[%emt 0:03:56]} 19. dxc6 {[%emt 0:01:49]} Bxc6 {[%emt 0:00:04]} 20. b4 {[%emt 0:00:11]} axb4 {[%emt 0:01:05]} 21. axb4 {[%emt 0:00:06]} Ncd7 {[%emt 0:00:22]} (21... Na4 $16 22. Qb3 d5) 22. Rd1 {[%emt 0:02:39][%cal Be1d1,Bd1d4,Bd4d6,Bd6d8][%mdl 32]} Qc7 {[%emt 0:02:02][%cal Oc6b5]} 23. Rd4 {[%emt 0:01:34]} Ra2 {[%emt 0:03:02]} 24. Rfd1 {[%emt 0:05:16] And now b5 would win.} Rea8 {[%emt 0:05:16]} 25. Rxd6 {[%emt 0:02:55] [#] Threatens to win with Qd4.} R8a3 {[%emt 0:03:30]} 26. Qd4 {[%emt 0:00:09] Hoping for b5. Chess con chili.} Re2 $2 {[%emt 0:01:02] A mistake that costs the game.} (26... Ba4 $16 27. Re1 Rxf2 28. Bxf2 Rd3) 27. b5 $1 $18 {[%emt 0:01:21]} (27. Bxe4 $2 Bxe4 28. Nxe4 Raxe3 29. Rxf6 Nxf6 30. Nxf6+ gxf6 31. Qxf6 Qh7 32. Rd8+ Re8 33. Rxe8+ Rxe8 $19) 27... Ba8 {[%emt 0:01:10] [#]} (27... Bb7) 28. Ng4 $1 {[%emt 0:00:49][%mdl 576] Deflection} Rd3 {[%emt 0:10:22]} 29. Nxf6+ {[%emt 0:00:14]} Nxf6 {[%emt 0:00:09]} 30. Rd8+ {[%emt 0:00:51]} (30. Qxb6 Rxd6 31. Qxd6 (31. Qxc7 $2 Rxd1+ 32. Bf1 Rxe3 $19) (31. Rxd6 Qxc4 32. h3 Bd5 $15) 31... Qxd6 32. Rxd6 Rxe3 $18) 30... Kf7 {[%emt 0:02:35]} 31. Rxd3 {[%emt 0:01:11]} exd3 {[%emt 0:02:56]} 32. Rxa8 {[%emt 0:01:42] Bd5+ is the strong threat.} (32. Bxa8 Rxe3 33. Bd5+ Ke7 34. Qxe3+ Kxd8 $18) 32... Rxg2+ {[%emt 0:00:21]} 33. Kxg2 {[%emt 0:00:03]} Qb7+ {[%emt 0:00:07]} 34. Kg1 {[%emt 0:00:20]} Qxa8 {[%emt 0:00:04]} 35. Qxd3 {[%emt 0:00:11][%mdl 4096] Endgame KQB-KQN} (35. Qxb6 Qa1+ 36. Kg2 Qa2+ 37. Kh3 Qe2 38. Qc7+ Kg8 39. Qd8+ (39. Qc8+ Kf7 $11) 39... Kf7 40. Qc7+ Kg8 41. Qd8+ (41. Qc8+ Kf7 $11) 41... Kf7 42. Qc7+ $11) 35... Qf3 {[%emt 0:00:18]} 36. Qd2 {[%emt 0:00:20]} (36. Qd4 $6 Qe2 37. h3 (37. Qxb6 Qe1+ 38. Kg2 Qe2+ 39. Kh3 Qh5+ 40. Kg2 Qe2+ 41. Kg1 Qe1+ 42. Kg2 Qe2+ $11) 37... Qf3 $18) 36... Qe4 {[%emt 0:00:20]} 37. Qd4 {[%emt 0:01:39] aiming for Qxe4.} (37. Bxb6 Qb1+ 38. Kg2 Qe4+ 39. Kf1 Qxc4+ 40. Qe2 Qd5 $18) 37... Qb1+ {[%emt 0:00:28]} 38. Kg2 {[%emt 0:00:05]} h5 {[%emt 0:01:00]} 39. h3 {[%emt 0:00:11]} (39. Qxb6 Qc2+ 40. Bf2 Qe4+ 41. Kh3 Qf5+ 42. Kg2 Qe4+ 43. Kh3 Qf5+ 44. Kg2 Qe4+ $11) 39... h4 {[%emt 0:01:03]} 40. g4 {[%emt 0:00:25]} ({Weaker is} 40. gxh4 Qg6+ 41. Kf1 Qb1+ 42. Ke2 Qc2+ 43. Bd2 Qa4 $18) (40. Qxb6 Qe4+ 41. Kf2 Qc2+ 42. Kf1 Qd3+ 43. Kg2 (43. Kg1 Qb1+ 44. Kg2 Qe4+ 45. Kg1 Qb1+ 46. Kg2 $11) 43... Qe4+ 44. Kh2 Qc2+ 45. Bf2 Ne4 $11) 40... Qc2+ {[%emt 0:01:08]} 41. Bf2 {[%emt 0:00:00]} Ne4 {[%emt 0:00:00]} 42. Qxb6 {[%emt 0:01:00]} (42. Qd7+ $142 Kf8 43. Qd8+ Kf7 44. Qxh4) 42... Qxc4 $2 {[%emt 0:00:00]} (42... Nxf2 43. Qxf2 Qxc4) 43. Bxh4 {[%emt 0:06:04]} Nd2 {[%emt 0:00:00]} 44. Qf2 {[%emt 0:05:22] Prevents Qf1+} Qe4+ {[%emt 0:02:46]} 45. Kh2 {[%emt 0:02:45]} Nf3+ {[%emt 0:00:45]} (45... Qd3 46. Bg5 Nf1+ 47. Kg1 Nd2) 46. Kg3 {[%emt 0:00:08]} Ne1 {[%emt 0:00:06]} 47. Qd2 {[%emt 0:05:35]} Qh1 {[%emt 0:04:16]} 48. Kf2 {[%emt 0:01:33]} Qxh3 {[%emt 0:00:17]} 49. Qd5+ {[%emt 0:00:46]} Kf8 {[%emt 0:00:16]} 50. Qd8+ {[%emt 0:00:51]} Kf7 {[%emt 0:00:02]} 51. Qe7+ {[%emt 0:01:18]} Kg8 {[%emt 0:00:02]} 52. Kxe1 {[%emt 0:00:27]} Qh1+ {[%emt 0:00:05]} 53. Kf2 {[%emt 0:00:39]} Qh2+ {[%emt 0:00:11]} 54. Ke3 {[%emt 0:00:12]} Qg1+ {[%emt 0:00:08]} 55. Bf2 {[%emt 0:00:33]} Qc1+ {[%emt 0:00:02]} 56. Kf3 {[%emt 0:00:26]} Qa3+ {[%emt 0:00:13]} 57. Qxa3 {[%emt 0:00:12] Excellently played by Jones!   Weighted Error Value: White=0.20 (precise) /Black=0.47} 1-0

[Event "4NCL 2022-2023"]
[Site "Daventry"]
[Date "2023.02.11"]
[Round "5.26"]
[White "Willow, Jonah B"]
[Black "Rowson, Jonathan"]
[Result "1-0"]
[ECO "B72"]
[WhiteElo "2437"]
[BlackElo "2547"]
[Annotator "TA"]
[PlyCount "91"]
[EventDate "2022.10.20"]
[EventType "team-tourn"]
[EventCountry "ENG"]
[SourceTitle "playchess.com"]
[Source "ChessBase"]
[SourceQuality "1"]
[TimeControl "40/6000+30:2400+30"]

{[%evp 14,90,24,25,23,25,46,52,52,40,68,61,63,63,56,42,53,3,0,0,136,150,160,143,334,329,348,338,335,343,347,347,338,338,429,314,337,373,274,179,266,145,203,191,173,192,177,164,168,40,43,0,0,0,6,0,0,0,186,202,733,726,932,891,3166,2827,2936,2264,1436,530,1317,1309,29988,29988,29988,29989,29998,29999,29999]} 1. e4 {[%emt 0:02:08]} c5 {[%emt 0:00:08]} 2. Nf3 {[%emt 0:00:40]} d6 {[%emt 0:00:07]} 3. d4 {[%emt 0:00:49]} cxd4 {[%emt 0:00:44]} 4. Nxd4 {[%emt 0:00:13]} Nf6 {[%emt 0:00:05]} 5. Nc3 {[%emt 0:00:42]} a6 {[%emt 0:00:24]} 6. Bd3 {[%emt 0:02:16]} g6 {[%emt 0:02:53]} 7. f3 {[%emt 0:02:29]} Bg7 {[%emt 0:00:26]} 8. Be3 {[%emt 0:00:06]} Nc6 {[%emt 0:11:50] B72: Sicilian Dragon: 6 Be3, lines with h3+Bc4 and sidelines.} 9. Qd2 {[%emt 0:03:58] [#]} Be6 $146 {[%emt 0:03:50]} ({Predecessor:} 9... Bd7 10. O-O-O b5 11. Nxc6 Bxc6 12. Bh6 O-O 13. h4 b4 14. Ne2 Qa5 15. Kb1 Qc5 16. h5 {½-½ Demchenko,A (2640)-Sarana,A (2662) Chess.com Rapid Wk25 Swiss 2022 (7)}) 10. Nxe6 {[%emt 0:02:23]} fxe6 {[%emt 0:00:07] White is slightly better.} 11. Bc4 {[%emt 0:13:30]} d5 {[%emt 0:20:37]} 12. exd5 {[%emt 0:01:22]} Na5 {[%emt 0:00:06]} 13. Be2 {[%emt 0:10:02]} exd5 {[%emt 0:00:41]} 14. O-O-O {[%emt 0:16:54][%cal Rc3d5]} e6 {[%emt 0:00:42]} 15. Bh6 {[%emt 0:01:59]} ({White should play} 15. Kb1 $14) 15... Bxh6 $11 {[%emt 0:01:50]} 16. Qxh6 {[%emt 0:00:50]} Kf7 {[%emt 0:00:09] [#]} (16... Qe7 $11 {remains equal.}) 17. Ne4 $1 $16 {[%emt 0:03:02][%mdl 576] Pin. White is more active.} Qf8 {[%emt 0:20:16]} (17... Kg8 18. Qe3) 18. Ng5+ {[%emt 0:01:17]} Ke7 $2 {[%emt 0:00:38]} (18... Kg8 $16 19. Qxf8+ Rxf8) 19. Qh3 $18 {[%emt 0:00:45]} Qc8 {[%emt 0:01:28]} 20. Rhe1 {[%emt 0:01:13][%cal Oe2b5]} (20. f4 h6 21. Qa3+ Ke8 22. Qxa5 hxg5 23. fxg5 Ne4) 20... e5 {[%emt 0:00:29]} (20... h6 $2 21. Nxe6 Kf7 22. Bd3 $18) 21. Qh6 {[%emt 0:09:02]} Qf8 {[%emt 0:00:53] Against Qg7+} 22. Qh4 {[%emt 0:00:05] Black must now prevent Qb4+.} (22. Qh3 Qc8 $18) 22... Nc6 {[%emt 0:01:50] Against Qb4+} 23. f4 $1 {[%emt 0:01:40] Strongly threatening fxe5.} (23. Qh3 Qc8 $14) 23... e4 {[%emt 0:01:43]} 24. Qh3 {[%emt 0:04:30]} Qc8 {[%emt 0:11:04]} 25. Qa3+ {[%emt 0:01:16]} (25. Qc3 Qc7 $14) 25... Ke8 {[%emt 0:00:07]} 26. g4 {[%emt 0:15:59][%cal Oe2c4] Wards off Qf5. Hoping for Bc4!} h6 {[%emt 0:02:03] [#]} (26... Ne7 {was called for.}) 27. Nh3 {[%emt 0:00:03]} ({Worse is} 27. Qd6 Qd8 28. Qxd8+ (28. Qe6+ Qe7 $15) 28... Nxd8 $11) (27. Nxe4 $1 $18 dxe4 28. Rd6) 27... Kf7 {[%emt 0:06:38]} (27... Nxg4 $2 28. Qd6 Ne3 29. Bh5 (29. Qxg6+ Ke7 $16) 29... gxh5 30. Rxe3 (30. Qg6+ Ke7 $16)) (27... Qd7 $16) 28. g5 {[%emt 0:00:53]} hxg5 {[%emt 0:00:20]} 29. Nxg5+ {[%emt 0:00:01]} Kg7 {[%emt 0:00:17]} 30. h3 {[%emt 0:03:46][%cal Oe2g4]} Re8 {[%emt 0:08:44] [#]} 31. Qc3 {[%emt 0:02:08]} (31. Kb1 $1 $18) 31... Ne7 $14 {[%emt 0:03:08]} 32. Qb3 {[%emt 0:01:35][%cal Oe2g4] Bg4! is the strong threat.} b5 {[%emt 0:01:06]} 33. Bg4 {[%emt 0:00:26]} Nf5 $1 $132 {[%emt 0:01:59][%mdl 2048] Black is not keeping still} (33... Nxg4 $2 34. hxg4 Qc4 35. Ne6+ (35. Qh3 Rh8 $14) 35... Kf6 36. Qxc4 bxc4 37. Nc7 $18) 34. Rxd5 {[%emt 0:01:28]} Nxd5 {[%emt 0:00:27]} 35. Qxd5 {[%emt 0:00:02] Qf7+ would kill now.} Re7 {[%emt 0:04:41] Wards off Qf7+} (35... Ra7 $11) 36. Rxe4 $18 {[%emt 0:02:20]} ({Not} 36. Nxe4 Rb8 $15) 36... Raa7 {[%emt 0:00:34]} (36... Qb7 37. Rxe7+ Qxe7) 37. Ne6+ {[%emt 0:00:43]} Kh6 {[%emt 0:00:42]} 38. Bxf5 {[%emt 0:01:26]} gxf5 {[%emt 0:00:25] Black is weak on the dark squares} 39. Qxf5 {[%emt 0:00:06] Intending Qg5+ and mate.} Qg8 {[%emt 0:00:09]} 40. Qf6+ {[%emt 0:02:37]} Qg6 {[%emt 0:00:09]} 41. Qh4+ {[%emt 0:41:35]} Qh5 {[%emt 0:40:07]} 42. f5 {[%emt 0:02:07] White wants to mate with Qf6+.} Rad7 {[%emt 0:03:25]} 43. Qf6+ {[%emt 0:00:44] White mates.} Kh7 {[%emt 0:00:05]} 44. Rg4 {[%emt 0:00:00][%cal Re6f8]} (44. Rh4 $2 Rd1#) 44... Qh6+ {[%emt 0:00:00]} 45. Qxh6+ {[%emt 0:00:00][%mdl 64] Remove Defender} Kxh6 {[%emt 0:00:00]} 46. Rh4# {[%emt 0:00:00] A superb game by Willow.   Weighted Error Value: White=0.21 (precise) /Black=0.48} 1-0

[Event "4NCL 2022-2023"]
[Site "Daventry"]
[Date "2023.02.11"]
[Round "5.27"]
[White "Adair, James R"]
[Black "Royal, Shreyas"]
[Result "1/2-1/2"]
[ECO "C95"]
[WhiteElo "2449"]
[BlackElo "2452"]
[Annotator "TA"]
[PlyCount "123"]
[EventDate "2022.10.20"]
[EventType "team-tourn"]
[EventCountry "ENG"]
[SourceTitle "playchess.com"]
[Source "ChessBase"]
[SourceQuality "1"]
[TimeControl "40/6000+30:2400+30"]

{[%evp 29,123,9,17,0,16,14,44,42,40,43,43,24,28,37,26,28,65,43,70,69,76,76,76,67,70,72,70,26,164,160,162,145,154,22,121,108,1027,52,46,0,0,0,0,0,0,0,0,0,46,52,52,62,86,93,95,45,57,18,33,17,22,20,20,21,39,18,69,8,37,8,8,8,8,8,8,8,8,8,8,8,8,8,8,8,8,8,8,8,8,8,8,0,8,8,8,8]} 1. e4 {[%emt 0:00:30]} e5 {[%emt 0:00:30]} 2. Nf3 {[%emt 0:00:30]} Nc6 {[%emt 0:00:30]} 3. Bb5 {[%emt 0:00:30]} a6 {[%emt 0:00:30]} 4. Bc4 {[%emt 0:00:30]} Nf6 {[%emt 0:00:30]} 5. O-O {[%emt 0:00:30]} Be7 {[%emt 0:00:30]} 6. Re1 {[%emt 0:00:30]} b5 {[%emt 0:00:30]} 7. Bb3 {[%emt 0:00:30]} d6 {[%emt 0:00:30]} 8. c3 {[%emt 0:00:30]} O-O {[%emt 0:00:30]} 9. h3 {[%emt 0:00:30]} Nb8 {[%emt 0:00:30]} 10. d4 {[%emt 0:00:30]} Nbd7 {[%emt 0:00:30]} 11. Nbd2 {[%emt 0:00:30][%cal Bb1d2,Bd2f1,Bf1g3][%mdl 32]} Bb7 {[%emt 0:00:30]} 12. Bc2 {[%emt 0:00:30]} Re8 {[%emt 0:00:30]} 13. Nf1 {[%emt 0:00:30]} Bf8 {[%emt 0:00:30]} 14. Ng3 {[%emt 0:00:30]} g6 {[%emt 0:00:30]} 15. Bd2 {[%emt 0:00:30]} Bg7 {[%emt 0:00:30]} 16. Qc1 {[%emt 0:00:30] C95: Closed Ruy Lopez: Breyer Variation with 10 d4.} d5 {[%emt 0:00:30]} 17. Bg5 {[%emt 0:00:30] [#] White wants to play Nxe5.} h6 $146 {[%emt 0:00:30]} ({Predecessor:} 17... dxe4 18. Bxe4 Bxe4 19. Nxe4 exd4 20. cxd4 Qc8 21. Nxf6+ Nxf6 22. Qc6 Qd7 23. Rxe8+ Qxe8 24. Qxc7 {½-½ Esipenko,A (2682)-Kamsky,G (2655) Biel 55th 2022 (5)}) 18. Bxh6 {[%emt 0:00:30] White is slightly better.} dxe4 {[%emt 0:00:30]} 19. Bxe4 {[%emt 0:00:30]} Nxe4 {[%emt 0:00:30]} 20. Nxe4 {[%emt 0:00:30]} exd4 {[%emt 0:00:30]} 21. Bxg7 {[%emt 0:00:30]} Kxg7 {[%emt 0:00:30]} 22. Neg5 {[%emt 0:00:30]} Rxe1+ {[%emt 0:00:30]} 23. Qxe1 {[%emt 0:00:30]} dxc3 {[%emt 0:00:30]} 24. Qxc3+ {[%emt 0:00:30]} Nf6 {[%emt 0:00:30]} 25. Ne5 {[%emt 0:00:30]} Qd5 {[%emt 0:00:30][%csl Gb7][%cal Rd5g2]} 26. f3 {[%emt 0:00:30] Active counter play!} (26. Nexf7 $2 Qxg2#) 26... Re8 {[%emt 0:00:30]} 27. Ngxf7 {[%emt 0:00:30] And now Re1 would win.} (27. Nexf7 Re7 $11) 27... Re7 {[%emt 0:00:30]} 28. Re1 {[%emt 0:00:30]} (28. Rc1 $5 {[%cal Rc3c2]} c5 29. Qc2 (29. Qxc5 Qxc5+ 30. Rxc5 Bd5 $17) 29... Qd4+ 30. Kh1 Rxe5 31. Nxe5 Qxe5 32. Qxc5 $16) 28... Bc8 {[%emt 0:00:30]} (28... Rxf7 $11 {and Black is okay.} 29. Nxf7 Qxf7) 29. Ng5 $18 {[%emt 0:00:30] Excellent horsemanship.} (29. Qc2 $6 Bf5 30. Qc3 Rxf7 $16) 29... b4 {[%emt 0:00:30]} 30. Qe3 {[%emt 0:00:30]} ({Weaker is} 30. Qxb4 Rxe5 31. h4 Rxe1+ 32. Qxe1 Qd4+ 33. Kh2 Kf8 $17) 30... Bb7 {[%emt 0:00:30]} 31. Qe2 {[%emt 0:00:30]} (31. Qc1 $16 {[%cal Oc1c2] Qc2! is the strong threat.} Nh5 32. g4 (32. Qe3 c5 $14)) 31... Qd4+ {[%emt 0:00:30] [#]} (31... c5 $1 $11) 32. Qf2 $1 $16 {[%emt 0:00:30]} Qf4 {[%emt 0:00:30][%mdl 8192]} (32... Qb6 $16) 33. Qe3 $2 {[%emt 0:00:30]} (33. Qc5 $18 Ng8 34. Qxe7+ {[%mdl 64] Remove Defender} Nxe7 35. Ne6+ Kf6 36. Nxf4) 33... Qg3 $14 {[%emt 0:00:30]} 34. Re2 {[%emt 0:00:30]} (34. Ngf7 $1 $14 Qh4 35. Nd8) 34... Nd5 $11 {[%emt 0:00:30]} 35. Qd4 {[%emt 0:00:30] White threatens Nc6+ and mate.} c5 {[%emt 0:00:30]} (35... Qxg5 $5 36. Nc6+ $8 Qf6 37. Qxf6+ Kxf6 38. Nxe7 Nxe7 $11) 36. Qg4 {[%emt 0:00:30] Really sharp!} Qxg4 {[%emt 0:00:30]} 37. hxg4 {[%emt 0:00:30]} c4 {[%emt 0:00:30] ...c3 would be deadly.} 38. g3 $1 {[%emt 0:00:30]} Nf6 {[%emt 0:00:30]} (38... c3 $11 39. f4 a5) 39. Kf2 $14 {[%emt 0:00:30]} Bd5 {[%emt 0:00:30]} 40. Nh3 {[%emt 0:00:30]} c3 {[%emt 0:00:30]} 41. bxc3 {[%emt 0:40:30]} bxc3 {[%emt 0:40:30][%cal Bb4c3,Bc3c2][%mdl 32]} 42. Nf4 {[%emt 0:00:30]} (42. g5 $16 Ng8 43. Nf4 Bxa2 44. Rxa2 (44. Nfxg6 Rc7 $14) 44... Rxe5 45. Rxa6) 42... c2 {[%emt 0:00:30]} 43. Ned3 {[%emt 0:00:30]} (43. Nfd3 $5 {[%cal Re2c2]}) 43... Rxe2+ {[%emt 0:00:30]} 44. Kxe2 $11 {[%emt 0:00:30][%mdl 4096] Endgame KBN-KNN} Bc4 {[%emt 0:00:30]} 45. Kd2 {[%emt 0:00:30] Threatens to win with a3.} g5 {[%emt 0:00:30]} 46. Ne2 {[%emt 0:00:30] Black must now prevent a3.} Bxa2 {[%emt 0:00:30]} 47. Kxc2 {[%emt 0:00:30]} Bd5 {[%emt 0:00:30]} (47... Nd7 $11) 48. Nd4 {[%emt 0:00:30]} (48. Ne5 $1 $14) 48... a5 {[%emt 0:00:30]} 49. Kc3 {[%emt 0:00:30]} Nd7 {[%emt 0:00:30] Prevents Ne5. The position is equal.} 50. f4 {[%emt 0:00:30]} Kf6 {[%emt 0:00:30]} 51. Nf5 {[%emt 0:00:30]} gxf4 {[%emt 0:00:30]} 52. gxf4 {[%emt 0:00:30]} Bf3 {[%emt 0:00:30]} 53. Ne3 {[%emt 0:00:30]} Bxg4 {[%emt 0:00:30][%mdl 64] [#] Deflection} 54. Nxg4+ {[%emt 0:00:30]} Kf5 {[%emt 0:00:30]} 55. Ne3+ {[%emt 0:00:30]} Ke4 {[%emt 0:00:30]} 56. Nc4 {[%emt 0:00:30]} Nf6 {[%emt 0:00:30]} 57. Nd6+ {[%emt 0:00:30]} Kd5 {[%emt 0:00:30]} 58. Nf5 {[%emt 0:00:30] Hoping for Ng3.} Nh5 {[%emt 0:00:30] Dodges Ng3} 59. Ne3+ {[%emt 0:00:30]} Ke4 {[%emt 0:00:30]} 60. Nc4 {[%emt 0:00:30]} Nxf4 {[%emt 0:00:30]} 61. Nxf4 {[%emt 0:00:30]} Kxf4 {[%emt 0:00:30]} 62. Nxa5 {[%emt 0:00:30] Weighted Error Value: White=0.26 (precise) /Black=0.14 (very precise)} 1/2-1/2

[Event "4NCL 2022-2023"]
[Site "Daventry"]
[Date "2023.02.11"]
[Round "5.28"]
[White "Czopor, Maciej"]
[Black "Wells, Peter K"]
[Result "1/2-1/2"]
[ECO "C56"]
[WhiteElo "2412"]
[BlackElo "2361"]
[Annotator "TA"]
[PlyCount "56"]
[EventDate "2022.10.20"]
[EventType "team-tourn"]
[EventCountry "ENG"]
[SourceTitle "playchess.com"]
[Source "ChessBase"]
[SourceQuality "1"]
[TimeControl "40/6000+30:2400+30"]

{[%evp 20,56,6,11,9,0,0,11,15,17,3,4,29,24,45,48,64,0,20,7,18,19,21,22,11,14,29,0,0,0,0,0,0,0,0,0,0,0,0]} 1. e4 {[%emt 0:00:06]} e5 {[%emt 0:04:52]} 2. Nf3 {[%emt 0:00:07]} Nc6 {[%emt 0:00:06]} 3. Bc4 {[%emt 0:00:32]} Nf6 {[%emt 0:00:16]} 4. d4 {[%emt 0:00:15]} exd4 {[%emt 0:00:49]} 5. e5 {[%emt 0:00:08]} d5 {[%emt 0:02:17]} 6. Bb5 {[%emt 0:00:13]} Ne4 {[%emt 0:00:14]} 7. Nxd4 {[%emt 0:00:09]} Bc5 {[%emt 0:03:05]} 8. Be3 {[%emt 0:00:22]} O-O {[%emt 0:05:35]} 9. Nxc6 {[%emt 0:01:00]} bxc6 {[%emt 0:00:12]} 10. Bxc5 {[%emt 0:00:12]} Nxc5 {[%emt 0:00:29]} 11. Bxc6 {[%emt 0:00:06]} Rb8 {[%emt 0:05:04][%cal Ba8b8,Bb8b2,Bb2c2,Bc2c6][%mdl 32] [#] aiming for ...Ba6. C56: Two Knights: 4 d4 exd4 5 0-0 Nxe4.} 12. Qxd5 {[%emt 0:00:56]} Qe7 {[%emt 0:19:50] Threatens to win with ...Rd8.} 13. O-O {[%emt 0:01:35]} Rxb2 {[%emt 0:04:56]} 14. Nc3 {[%emt 0:01:48][%cal Bb1c3,Bc3a4,Ba4c5][%mdl 32]} Rxc2 {[%emt 0:20:55]} 15. Qd4 {[%emt 0:01:14]} Be6 {[%emt 0:21:11]} (15... Ne6 $5 {[%cal Re6d4]} 16. Qd3 Rb2 $11) 16. Rfd1 {[%emt 0:27:28] [#]} a5 $146 {[%emt 0:03:00]} ({Predecessor:} 16... h6 17. Rab1 a6 18. Qb4 Bf5 19. Nd5 Qe6 20. h3 Kh7 21. Ba4 a5 22. Qa3 Rd8 23. Bxc2 Bxc2 {1-0 Sanal,V (2581)-Sargissian,G (2682) Online Olym Div Top-C rapid 2020 (3.2)}) 17. Rab1 {[%emt 0:09:03]} h5 {[%emt 0:10:01]} 18. Rb5 {[%emt 0:14:08]} (18. h3 $14) 18... Na4 {[%emt 0:00:47]} 19. Nxa4 {[%emt 0:17:49]} Rxc6 {[%emt 0:00:10]} 20. Nc5 {[%emt 0:02:51]} Bxa2 {[%emt 0:02:20]} 21. Rxa5 {[%emt 0:00:54] Black must now prevent Nd7.} Be6 {[%emt 0:00:29]} 22. h3 {[%emt 0:02:31]} Re8 {[%emt 0:01:26]} 23. Qa4 {[%emt 0:07:21]} Rxc5 {[%emt 0:02:29] The position is equal.} 24. Rxc5 {[%emt 0:00:08]} Bb3 {[%emt 0:00:02]} 25. Qxb3 {[%emt 0:08:47]} Qxc5 {[%emt 0:00:03]} 26. Rd7 {[%emt 0:02:43]} Qc1+ {[%emt 0:00:12]} 27. Kh2 {[%emt 0:00:12]} Qf4+ {[%emt 0:00:15]} 28. Qg3 {[%emt 0:00:06]} Qxg3+ {[%emt 0:00:47] Weighted Error Value: White=0.06 (flawless) /Black=0.07 (flawless)} 1/2-1/2